[Event "FRA-ch Universities 2019"]
[Site "Paris"]
[Date "2019.02.03"]
[Round "8"]
[White "Brethes, Francois"]
[Black "Bedini, Lucas"]
[Result "1-0"]
[ECO "C50"]
[WhiteElo "2267"]
[BlackElo "1920"]
[Annotator "NA"]
[PlyCount "102"]
[EventDate "2019.02.01"]
[EventType "swiss"]
[EventCountry "FRA"]
[SourceTitle "playchess.com"]
[Source "ChessBase"]
[SourceQuality "1"]
[TimeControl "900+5"]

1. e4 {[%emt 0:00:00]} e5 {[%emt 0:00:00]} 2. Nf3 {[%emt 0:00:00]} Nc6 {[%emt 0:00:01]} 3. Bc4 {[%emt 0:00:00]} Nf6 {[%emt 0:00:02]} 4. d3 {[%emt 0:00:02]} Bc5 {[%emt 0:00:11]} 5. O-O {[%emt 0:00:05]} h6 {[%emt 0:00:08]} 6. a4 {[%emt 0:00:16]} O-O {[%emt 0:00:58]} 7. c3 {[%emt 0:00:22]} d5 {[%emt 0:00:01]} 8. exd5 {[%emt 0:00:05]} Nxd5 {[%emt 0:00:01]} 9. Nbd2 {[%emt 0:00:04]} Nb6 {[%emt 0:00:23]} 10. Bb3 {[%emt 0:00:47]} Qxd3 {[%emt 0:00:18]} 11. a5 {[%emt 0:00:02]} Nd7 {[%emt 0:00:01]} 12. Bc4 {[%emt 0:01:39]} Qg6 {[%emt 0:00:16]} 13. Nh4 {[%emt 0:00:13]} Qf6 {[%emt 0:00:27]} 14. Qh5 {[%emt 0:00:13]} Qg5 {[%emt 0:01:11]} 15. Qxg5 {[%emt 0:00:03]} hxg5 {[%emt 0:00:01]} 16. Nhf3 {[%emt 0:00:41]} g4 {[%emt 0:00:41]} 17. Ng5 {[%emt 0:00:02]} Nf6 {[%emt 0:00:09]} 18. b4 {[%emt 0:00:16]} Be7 {[%emt 0:00:02]} 19. b5 {[%emt 0:00:09]} Nd8 {[%emt 0:00:10]} 20. Re1 {[%emt 0:00:02]} Nd7 {[%emt 0:01:00]} 21. Nf1 {[%emt 0:01:29]} c6 {[%emt 0:00:23]} 22. bxc6 {[%emt 0:03:18]} Nxc6 {[%emt 0:00:24]} 23. Ne4 {[%emt 0:00:25]} Nc5 {[%emt 0:00:30]} 24. Ba3 {[%emt 0:00:04]} Nxe4 25. Bxe7 {[%emt 0:00:17]} Nxe7 {[%emt 0:00:27]} 26. Rxe4 {[%emt 0:00:02]} Nc6 {[%emt 0:00:11]} 27. Bd5 {[%emt 0:00:26]} Re8 {[%emt 0:00:39]} 28. Ne3 {[%emt 0:00:11]} Kf8 {[%emt 0:00:00]} 29. a6 {[%emt 0:00:30]} f6 {[%emt 0:01:09]} 30. Rc4 {[%emt 0:00:16]} Nd8 {[%emt 0:00:50]} 31. Nxg4 {[%emt 0:00:11]} Be6 {[%emt 0:00:34]} 32. Ne3 {[%emt 0:01:33]} Ke7 {[%emt 0:00:54]} 33. axb7 {[%emt 0:00:23]} Rb8 {[%emt 0:00:01]} 34. Rxa7 {[%emt 0:00:11]} Bxd5 {[%emt 0:00:04]} 35. Nxd5+ {[%emt 0:00:03]} Kd6 {[%emt 0:00:00]} 36. Nc7 {[%emt 0:00:40]} Re7 {[%emt 0:00:33]} 37. Nb5+ {[%emt 0:00:13]} Kd5 {[%emt 0:00:57]} 38. Rc7 {[%emt 0:00:27]} Rxc7 39. Nxc7+ Kc4 {[%emt 0:00:03]} 40. Ne8 {[%emt 0:00:03]} Nxb7 {[%emt 0:00:04]} 41. Nxg7 {[%emt 0:00:03]} Nd6 {[%emt 0:00:24]} 42. g4 {[%emt 0:00:09]} Kxc3 43. h4 {[%emt 0:00:56]} Rb4 {[%emt 0:01:07]} 44. f3 {[%emt 0:00:15]} Rf4 {[%emt 0:00:16]} 45. Ra3+ {[%emt 0:00:17]} Kd2 {[%emt 0:00:03]} 46. Kf2 {[%emt 0:00:34]} e4 {[%emt 0:00:01]} 47. Ne6 {[%emt 0:00:04]} e3+ {[%emt 0:00:28]} 48. Rxe3 {[%emt 0:00:02]} Ra4 {[%emt 0:00:01]} 49. Re2+ {[%emt 0:00:17]} Kd3 {[%emt 0:00:02]} 50. Nc5+ {[%emt 0:00:01]} Kc3 51. Nxa4+ Kd3 1-0

[Event "FRA-ch Universities 2019"]
[Site "Paris"]
[Date "2019.02.03"]
[Round "8"]
[White "Dobrocmyslov, Artem"]
[Black "Lutard, Theo"]
[Result "1-0"]
[ECO "A40"]
[WhiteElo "2262"]
[BlackElo "2222"]
[Annotator "NA"]
[PlyCount "88"]
[EventDate "2019.02.01"]
[EventType "swiss"]
[EventCountry "FRA"]
[SourceTitle "playchess.com"]
[Source "ChessBase"]
[SourceQuality "1"]
[TimeControl "900+5"]

1. d4 {[%emt 0:00:00]} e6 {[%emt 0:00:00]} 2. Nf3 {[%emt 0:00:02]} b6 {[%emt 0:00:00]} 3. e4 {[%emt 0:00:04]} Bb7 {[%emt 0:00:00]} 4. Bd3 {[%emt 0:00:04]} d6 {[%emt 0:00:01]} 5. O-O {[%emt 0:00:03]} Nd7 {[%emt 0:00:02]} 6. Qe2 {[%emt 0:01:06]} g6 {[%emt 0:00:03]} 7. Bg5 {[%emt 0:00:21]} Ne7 {[%emt 0:00:02]} 8. e5 {[%emt 0:01:20]} Bxf3 {[%emt 0:03:12]} 9. Qxf3 {[%emt 0:00:09]} d5 {[%emt 0:01:24]} 10. Bf6 {[%emt 0:00:56]} Nxf6 {[%emt 0:00:16]} 11. exf6 {[%emt 0:00:04]} Nc6 {[%emt 0:00:23]} 12. Bb5 {[%emt 0:00:41]} Qd6 {[%emt 0:00:28]} 13. Nd2 {[%emt 0:06:50]} O-O-O {[%emt 0:03:40]} 14. Nc4 {[%emt 0:00:08]} Qb4 {[%emt 0:01:25]} 15. Ba6+ {[%emt 0:04:13]} Kb8 {[%emt 0:00:21]} 16. Ne5 {[%emt 0:00:01]} Nxe5 {[%emt 0:01:32]} 17. dxe5 {[%emt 0:00:02]} c5 {[%emt 0:01:05]} 18. Qe2 {[%emt 0:00:19]} c4 {[%emt 0:00:33]} 19. b3 {[%emt 0:00:05]} Qa5 {[%emt 0:00:06]} 20. Bxc4 {[%emt 0:00:05]} dxc4 {[%emt 0:00:02]} 21. bxc4 {[%emt 0:00:03]} Bc5 {[%emt 0:00:13]} 22. Rab1 {[%emt 0:00:07]} Qd2 {[%emt 0:01:10]} 23. Qe4 {[%emt 0:00:05]} Qd4 {[%emt 0:00:06]} 24. Qc6 {[%emt 0:00:04]} Qxe5 {[%emt 0:00:07]} 25. a4 {[%emt 0:00:06]} Rd6 {[%emt 0:00:29]} 26. Qf3 {[%emt 0:00:05]} Bd4 {[%emt 0:00:17]} 27. Rb5 {[%emt 0:00:05]} Qxf6 {[%emt 0:00:04]} 28. Qg3 {[%emt 0:00:04]} e5 {[%emt 0:00:05]} 29. a5 {[%emt 0:00:04]} Rhd8 {[%emt 0:00:06]} 30. axb6 {[%emt 0:00:07]} Rxb6 {[%emt 0:00:03]} 31. Rfb1 {[%emt 0:00:05]} Rxb5 {[%emt 0:00:03]} 32. Rxb5+ {[%emt 0:00:02]} Bb6 {[%emt 0:00:00]} 33. h4 {[%emt 0:00:07]} Rd1+ {[%emt 0:00:03]} 34. Kh2 {[%emt 0:00:01]} Kc8 {[%emt 0:00:23]} 35. Qg4+ {[%emt 0:00:02]} Kc7 {[%emt 0:00:04]} 36. Qxd1 {[%emt 0:00:02]} Qf4+ {[%emt 0:00:00]} 37. Kh3 {[%emt 0:00:11]} Qxf2 {[%emt 0:00:08]} 38. Rd5 {[%emt 0:00:09]} Qe3+ {[%emt 0:00:01]} 39. Kh2 {[%emt 0:00:06]} Qf4+ {[%emt 0:00:01]} 40. Kh3 {[%emt 0:00:04]} Qf5+ {[%emt 0:00:03]} 41. g4 {[%emt 0:00:05]} Qe6 {[%emt 0:00:02]} 42. c5 {[%emt 0:00:03]} Ba5 {[%emt 0:00:02]} 43. c4 {[%emt 0:00:05]} e4 {[%emt 0:00:05]} 44. Qa4 {[%emt 0:00:05]} Be1 1-0

[Event "FRA-ch Universities 2019"]
[Site "Paris"]
[Date "2019.02.03"]
[Round "8"]
[White "Viers, Emmanuel"]
[Black "Eden, James"]
[Result "0-1"]
[ECO "D00"]
[WhiteElo "2199"]
[BlackElo "2338"]
[Annotator "NA"]
[PlyCount "50"]
[EventDate "2019.02.01"]
[EventType "swiss"]
[EventCountry "FRA"]
[SourceTitle "playchess.com"]
[Source "ChessBase"]
[SourceQuality "1"]
[TimeControl "900+5"]

1. d4 {[%emt 0:00:00]} d5 {[%emt 0:00:53]} 2. Nc3 {[%emt 0:00:00]} Nf6 {[%emt 0:00:07]} 3. Nf3 {[%emt 0:00:00]} Bf5 {[%emt 0:00:14]} 4. Ne5 {[%emt 0:00:01]} e6 {[%emt 0:00:15]} 5. e3 {[%emt 0:00:01]} Nbd7 {[%emt 0:00:12]} 6. g4 {[%emt 0:00:01]} Nxe5 {[%emt 0:01:18]} 7. gxf5 {[%emt 0:00:02]} Nc6 {[%emt 0:00:04]} 8. fxe6 {[%emt 0:00:18]} fxe6 {[%emt 0:00:03]} 9. Rg1 {[%emt 0:00:24]} Qd7 {[%emt 0:00:58]} 10. Bh3 {[%emt 0:00:30]} O-O-O {[%emt 0:00:32]} 11. Qe2 {[%emt 0:01:07]} Bd6 {[%emt 0:00:26]} 12. f3 {[%emt 0:00:18]} Kb8 {[%emt 0:00:20]} 13. Bd2 {[%emt 0:00:05]} Qe7 {[%emt 0:00:09]} 14. f4 {[%emt 0:04:06]} h6 {[%emt 0:01:08]} 15. Bf1 {[%emt 0:03:49]} g5 {[%emt 0:00:34]} 16. fxg5 {[%emt 0:00:03]} hxg5 {[%emt 0:00:03]} 17. h3 {[%emt 0:01:18]} e5 {[%emt 0:00:37]} 18. dxe5 {[%emt 0:01:17]} Nxe5 {[%emt 0:00:08]} 19. Rxg5 {[%emt 0:00:44]} Ne4 {[%emt 0:00:21]} 20. Nxe4 {[%emt 0:01:04]} dxe4 {[%emt 0:00:04]} 21. Rxe5 {[%emt 0:01:10]} Qh4+ {[%emt 0:00:41]} 22. Kd1 {[%emt 0:00:01]} Bxe5 {[%emt 0:00:04]} 23. c3 {[%emt 0:00:01]} Rhf8 {[%emt 0:00:07]} 24. Qb5 {[%emt 0:00:27]} Qf2 25. Be2 Qxe3 {[%emt 0:00:19]} 0-1

[Event "FRA-ch Universities 2019"]
[Site "Paris"]
[Date "2019.02.03"]
[Round "8"]
[White "Toure, Vasanth"]
[Black "Guillemart, Serge"]
[Result "1-0"]
[ECO "B35"]
[WhiteElo "2064"]
[BlackElo "2023"]
[Annotator "NA"]
[PlyCount "155"]
[EventDate "2019.02.01"]
[EventType "swiss"]
[EventCountry "FRA"]
[SourceTitle "playchess.com"]
[Source "ChessBase"]
[SourceQuality "1"]
[TimeControl "900+5"]

1. e4 {[%emt 0:00:00]} c5 {[%emt 0:00:00]} 2. Nf3 {[%emt 0:00:07]} g6 {[%emt 0:00:01]} 3. d4 {[%emt 0:00:27]} Bg7 {[%emt 0:00:03]} 4. Nc3 {[%emt 0:00:37]} cxd4 {[%emt 0:00:03]} 5. Nxd4 {[%emt 0:00:02]} Nc6 {[%emt 0:00:02]} 6. Be3 {[%emt 0:00:10]} Nf6 {[%emt 0:00:02]} 7. Bc4 {[%emt 0:00:05]} O-O {[%emt 0:00:04]} 8. Bb3 {[%emt 0:00:52]} Ng4 {[%emt 0:00:02]} 9. Qxg4 {[%emt 0:01:10]} Nxd4 {[%emt 0:00:03]} 10. Qd1 {[%emt 0:01:15]} Nxb3 {[%emt 0:00:02]} 11. axb3 {[%emt 0:00:01]} b6 {[%emt 0:00:01]} 12. Qd5 {[%emt 0:02:22]} Qc7 {[%emt 0:00:02]} 13. O-O {[%emt 0:01:33]} Bb7 {[%emt 0:00:02]} 14. Qd3 {[%emt 0:01:56]} a6 {[%emt 0:00:17]} 15. Rad1 {[%emt 0:00:28]} d6 {[%emt 0:00:04]} 16. Na4 {[%emt 0:00:19]} b5 {[%emt 0:00:05]} 17. Nb6 {[%emt 0:00:16]} Rad8 {[%emt 0:00:06]} 18. c4 {[%emt 0:01:00]} b4 {[%emt 0:00:14]} 19. Rd2 {[%emt 0:00:19]} f5 {[%emt 0:00:07]} 20. Nd5 {[%emt 0:00:35]} Bxd5 {[%emt 0:00:10]} 21. exd5 {[%emt 0:00:01]} f4 {[%emt 0:00:32]} 22. Bd4 {[%emt 0:00:01]} f3 {[%emt 0:00:05]} 23. Bxg7 {[%emt 0:00:30]} Kxg7 {[%emt 0:00:02]} 24. gxf3 {[%emt 0:00:03]} Qd7 {[%emt 0:00:07]} 25. Kg2 {[%emt 0:00:04]} Rf4 {[%emt 0:00:06]} 26. Re2 {[%emt 0:00:14]} Rdf8 {[%emt 0:00:06]} 27. Re6 {[%emt 0:00:06]} R8f7 {[%emt 0:00:15]} 28. Rfe1 {[%emt 0:00:03]} Qa7 {[%emt 0:00:11]} 29. R1e3 {[%emt 0:00:13]} Rd4 {[%emt 0:00:05]} 30. Qb1 {[%emt 0:00:15]} Rdf4 {[%emt 0:00:18]} 31. Qa1 {[%emt 0:00:17]} R4f5 {[%emt 0:00:52]} 32. Qa5 {[%emt 0:00:13]} Rg5+ {[%emt 0:00:03]} 33. Kf1 {[%emt 0:00:01]} Qd4 {[%emt 0:00:04]} 34. Qxb4 {[%emt 0:00:20]} Qh4 {[%emt 0:01:23]} 35. Ke2 {[%emt 0:00:15]} Rg2 {[%emt 0:00:05]} 36. Qe1 {[%emt 0:00:10]} Rxh2 {[%emt 0:00:12]} 37. R3e4 {[%emt 0:00:14]} Qh5 {[%emt 0:00:16]} 38. Re3 {[%emt 0:00:08]} Qg5 {[%emt 0:00:12]} 39. Qc3+ {[%emt 0:00:33]} Kg8 {[%emt 0:00:17]} 40. Qe1 {[%emt 0:00:01]} Rh3 {[%emt 0:00:21]} 41. Qa5 {[%emt 0:00:33]} Qf5 {[%emt 0:00:23]} 42. Qc3 {[%emt 0:00:07]} Qg5 {[%emt 0:00:23]} 43. Qa5 {[%emt 0:00:01]} Kg7 {[%emt 0:00:19]} 44. Qc3+ {[%emt 0:00:01]} Kh6 {[%emt 0:00:18]} 45. Qd4 {[%emt 0:00:20]} Rh4 {[%emt 0:00:11]} 46. R6e4 {[%emt 0:00:06]} Rh1 {[%emt 0:00:13]} 47. Rg4 {[%emt 0:00:13]} Qh5 {[%emt 0:00:07]} 48. Ree4 {[%emt 0:00:03]} Qf5 {[%emt 0:01:53]} 49. Rh4+ {[%emt 0:00:07]} Rxh4 {[%emt 0:00:02]} 50. Rxh4+ {[%emt 0:00:01]} Kg5 {[%emt 0:00:04]} 51. Rg4+ {[%emt 0:00:02]} Kh5 {[%emt 0:00:10]} 52. Rh4+ {[%emt 0:00:04]} Kg5 {[%emt 0:00:03]} 53. Qg4+ {[%emt 0:00:01]} Qxg4 {[%emt 0:00:02]} 54. Rxg4+ {[%emt 0:00:01]} Kf5 {[%emt 0:00:13]} 55. Ke3 {[%emt 0:00:02]} Rg7 {[%emt 0:00:06]} 56. b4 {[%emt 0:00:05]} h5 {[%emt 0:00:00]} 57. Rf4+ {[%emt 0:00:01]} Ke5 {[%emt 0:00:12]} 58. Rf8 {[%emt 0:00:01]} g5 {[%emt 0:00:11]} 59. Ra8 {[%emt 0:00:07]} h4 {[%emt 0:00:04]} 60. Rxa6 {[%emt 0:00:02]} Rg8 {[%emt 0:00:09]} 61. Ra7 {[%emt 0:00:03]} Kf6 {[%emt 0:00:02]} 62. b5 {[%emt 0:00:01]} h3 {[%emt 0:00:04]} 63. Ra1 {[%emt 0:00:01]} Ke5 {[%emt 0:00:04]} 64. Rh1 {[%emt 0:00:09]} Rh8 {[%emt 0:00:03]} 65. b4 {[%emt 0:00:04]} Rh4 {[%emt 0:00:05]} 66. Kd3 {[%emt 0:00:11]} Kf4 {[%emt 0:00:13]} 67. b6 {[%emt 0:00:04]} Rh8 {[%emt 0:00:12]} 68. c5 {[%emt 0:00:23]} Ke5 {[%emt 0:00:08]} 69. Kc4 {[%emt 0:00:04]} dxc5 {[%emt 0:00:27]} 70. bxc5 {[%emt 0:00:02]} Rh4+ {[%emt 0:00:01]} 71. Kb5 {[%emt 0:00:01]} Kxd5 {[%emt 0:00:01]} 72. Rd1+ {[%emt 0:00:05]} Ke6 {[%emt 0:00:01]} 73. Kc6 {[%emt 0:00:05]} h2 {[%emt 0:00:08]} 74. Re1+ {[%emt 0:00:05]} Kf6 {[%emt 0:00:06]} 75. b7 {[%emt 0:00:12]} g4 {[%emt 0:00:13]} 76. b8=Q {[%emt 0:00:13]} Rh6 {[%emt 0:00:13]} 77. Qe5+ {[%emt 0:00:07]} Kf7+ {[%emt 0:00:01]} 78. Kb5 {[%emt 0:00:03]} 1-0

[Event "FRA-ch Universities 2019"]
[Site "Paris"]
[Date "2019.02.03"]
[Round "8"]
[White "Mugil, Jayavel"]
[Black "Loiseau, Quentin"]
[Result "0-1"]
[ECO "C48"]
[WhiteElo "2001"]
[BlackElo "2452"]
[Annotator "RC"]
[PlyCount "72"]
[EventDate "2019.02.01"]
[EventType "swiss"]
[EventCountry "FRA"]
[SourceTitle "playchess.com"]
[Source "ChessBase"]
[SourceQuality "1"]
[TimeControl "900+5"]

1. e4 {[%emt 0:02:15]} e5 {[%emt 0:00:03]} 2. Nf3 {[%emt 0:00:02]} Nc6 {[%emt 0:00:01]} 3. Nc3 {[%emt 0:00:02]} Nf6 {[%emt 0:00:04]} 4. Bb5 {[%emt 0:00:01]} Bc5 {[%emt 0:00:02]} 5. Nxe5 {[%emt 0:00:27]} Nxe5 {[%emt 0:00:20]} 6. d4 {[%emt 0:00:01]} Bd6 {[%emt 0:00:03]} 7. f4 {[%emt 0:00:13]} Ng6 {[%emt 0:00:13]} 8. e5 {[%emt 0:00:04]} Be7 {[%emt 0:00:02]} 9. f5 {[%emt 0:01:19]} Nh4 {[%emt 0:00:20]} 10. exf6 {[%emt 0:01:34]} Bxf6 {[%emt 0:00:19]} 11. O-O {[%emt 0:00:02]} c6 {[%emt 0:02:00]} 12. Qe1+ {[%emt 0:01:12]} Qe7 {[%emt 0:01:44]} 13. Ne4 {[%emt 0:01:14]} Bxd4+ {[%emt 0:00:35]} 14. Kh1 {[%emt 0:00:03]} cxb5 {[%emt 0:05:51]} 15. f6 {[%emt 0:00:32]} Bxf6 {[%emt 0:01:50]} 16. Rxf6 {[%emt 0:01:25]} Nxg2 {[%emt 0:02:00]} 17. Kxg2 {[%emt 0:03:46]} gxf6 {[%emt 0:00:01]} 18. Nxf6+ {[%emt 0:01:03]} Kd8 {[%emt 0:00:01]} 19. Qf2 {[%emt 0:00:10]} b6 {[%emt 0:00:18]} 20. Bg5 {[%emt 0:00:10]} Bb7+ {[%emt 0:00:31]} 21. Kf1 {[%emt 0:00:12]} Kc8 {[%emt 0:00:11]} 22. Re1 {[%emt 0:00:11]} Qc5 {[%emt 0:00:03]} 23. Be3 {[%emt 0:00:38]} Qc4+ {[%emt 0:00:01]} 24. Re2 {[%emt 0:00:06]} Bc6 {[%emt 0:00:02]} 25. b3 {[%emt 0:00:02]} Qe6 {[%emt 0:00:13]} 26. Bxb6 {[%emt 0:00:18]} Qh3+ {[%emt 0:00:03]} 27. Ke1 {[%emt 0:00:01]} axb6 {[%emt 0:00:04]} 28. Qxb6 {[%emt 0:00:01]} Qh4+ {[%emt 0:00:01]} 29. Rf2 {[%emt 0:00:06]} Rxa2 {[%emt 0:00:08]} 30. Kd2 {[%emt 0:00:10]} Qb4+ {[%emt 0:00:06]} 31. Kd3 {[%emt 0:00:05]} Ra1 {[%emt 0:00:06]} 32. Rd2 {[%emt 0:00:06]} Qd6+ {[%emt 0:00:03]} 33. Ke3 {[%emt 0:00:03]} Qxf6 {[%emt 0:00:02]} 34. b4 {[%emt 0:00:09]} Re8+ {[%emt 0:00:02]} 35. Kd3 {[%emt 0:00:01]} Ra3+ {[%emt 0:00:02]} 36. c3 {[%emt 0:00:02]} Rxc3# {Kd4} 0-1

[Event "FRA-ch Universities 2019"]
[Site "Paris"]
[Date "2019.02.03"]
[Round "8"]
[White "Noir, Mathys"]
[Black "Brunier, Jules"]
[Result "0-1"]
[ECO "C11"]
[WhiteElo "1889"]
[BlackElo "2015"]
[Annotator "NA"]
[PlyCount "75"]
[EventDate "2019.02.01"]
[EventType "swiss"]
[EventCountry "FRA"]
[SourceTitle "playchess.com"]
[Source "ChessBase"]
[SourceQuality "1"]
[TimeControl "900+5"]

1. e4 {[%emt 0:00:00]} e6 {[%emt 0:00:00]} 2. d4 {[%emt 0:00:00]} d5 {[%emt 0:00:01]} 3. Nc3 {[%emt 0:00:04]} Nf6 {[%emt 0:00:04]} 4. e5 {[%emt 0:00:06]} Nfd7 {[%emt 0:00:05]} 5. f4 {[%emt 0:00:04]} c5 {[%emt 0:00:03]} 6. Nf3 {[%emt 0:00:14]} Nc6 {[%emt 0:00:02]} 7. Bd3 {[%emt 0:00:11]} cxd4 {[%emt 0:00:30]} 8. Ne2 {[%emt 0:00:10]} Bc5 {[%emt 0:00:09]} 9. Ng3 {[%emt 0:01:14]} f6 {[%emt 0:00:22]} 10. O-O {[%emt 0:00:12]} O-O {[%emt 0:00:09]} 11. Bd2 {[%emt 0:03:22]} Re8 {[%emt 0:01:21]} 12. a3 {[%emt 0:01:25]} a5 {[%emt 0:01:17]} 13. Kh1 {[%emt 0:00:22]} f5 {[%emt 0:01:02]} 14. Ng5 {[%emt 0:01:54]} Nf8 {[%emt 0:00:45]} 15. Nh5 {[%emt 0:04:30]} Ng6 {[%emt 0:03:16]} 16. g4 {[%emt 0:00:11]} h6 {[%emt 0:00:22]} 17. Nxe6 {[%emt 0:00:15]} Bxe6 {[%emt 0:00:14]} 18. gxf5 {[%emt 0:00:01]} Bxf5 {[%emt 0:01:22]} 19. Bxf5 {[%emt 0:00:02]} Nh4 {[%emt 0:00:02]} 20. Qg4 {[%emt 0:00:37]} Nxf5 {[%emt 0:01:05]} 21. Nf6+ {[%emt 0:00:09]} Kh8 {[%emt 0:00:34]} 22. Nxe8 {[%emt 0:00:02]} Qxe8 {[%emt 0:00:04]} 23. Qxf5 {[%emt 0:00:02]} Qe7 {[%emt 0:00:05]} 24. b4 {[%emt 0:00:24]} Rf8 {[%emt 0:00:52]} 25. Qd3 {[%emt 0:00:02]} axb4 {[%emt 0:00:15]} 26. axb4 {[%emt 0:00:01]} Bxb4 {[%emt 0:00:12]} 27. Bxb4 Nxb4 28. Qb3 {[%emt 0:00:12]} Qc5 {[%emt 0:00:07]} 29. Rab1 {[%emt 0:00:31]} Nxc2 {[%emt 0:00:05]} 30. Rbc1 {[%emt 0:00:05]} Rc8 {[%emt 0:00:04]} 31. Rf2 {[%emt 0:00:04]} d3 {[%emt 0:00:01]} 32. Qxd3 {[%emt 0:00:01]} Qxf2 {[%emt 0:00:02]} 33. f5 {[%emt 0:00:23]} d4 {[%emt 0:00:15]} 34. f6 {[%emt 0:00:14]} gxf6 {[%emt 0:00:15]} 35. exf6 {[%emt 0:00:02]} Qe3 {[%emt 0:00:16]} 36. Qd1 {[%emt 0:00:28]} Qe4+ {[%emt 0:00:07]} 37. Kg1 {[%emt 0:00:03]} Rg8+ {[%emt 0:00:01]} 38. Kf1 0-1

[Event "FRA-ch Universities 2019"]
[Site "Paris"]
[Date "2019.02.03"]
[Round "9"]
[White "Devallee, Jeremie"]
[Black "Mugil, Jayavel"]
[Result "0-1"]
[ECO "C00"]
[WhiteElo "2317"]
[BlackElo "2001"]
[Annotator "NA"]
[PlyCount "108"]
[EventDate "2019.02.01"]
[EventType "swiss"]
[EventCountry "FRA"]
[SourceTitle "playchess.com"]
[Source "ChessBase"]
[SourceQuality "1"]
[TimeControl "900+5"]

1. e4 {[%emt 0:00:00]} e6 {[%emt 0:00:00]} 2. Nf3 {[%emt 0:00:02]} d5 {[%emt 0:00:00]} 3. e5 {[%emt 0:00:01]} c5 {[%emt 0:00:00]} 4. b4 {[%emt 0:00:01]} cxb4 {[%emt 0:00:02]} 5. a3 {[%emt 0:00:01]} bxa3 {[%emt 0:00:03]} 6. d4 {[%emt 0:00:01]} Nc6 {[%emt 0:00:03]} 7. c3 {[%emt 0:00:01]} f6 {[%emt 0:00:15]} 8. Bd3 {[%emt 0:00:02] C00: French: Unusual White 2nd moves} fxe5 {[%emt 0:00:08]} 9. dxe5 {[%emt 0:00:08]} g6 {[%emt 0:00:22]} 10. Nxa3 $146 {[%emt 0:00:22]} ({Predecessor:} 10. h4 Bg7 11. Qe2 Qc7 12. Bf4 Nge7 13. O-O O-O 14. Bh2 Rxf3 15. Qxf3 Nxe5 {0-1 (36) Moravec,V (2184)-Rosenbaum,V (2056) Rakovnik 2014}) 10... Bg7 {[%emt 0:00:20]} 11. Qe2 {[%emt 0:00:04]} Nge7 {[%emt 0:00:05]} 12. Nb5 {[%emt 0:00:10]} O-O {[%emt 0:00:12]} 13. O-O {[%emt 0:00:08]} Nf5 {[%emt 0:02:31]} 14. Ba3 {[%emt 0:00:07]} Rf7 {[%emt 0:00:23]} 15. Nd6 {[%emt 0:00:39]} Nxd6 {[%emt 0:00:37]} 16. Bxd6 {[%emt 0:00:02]} Bf8 {[%emt 0:00:27]} 17. Bxf8 {[%emt 0:00:04]} Qxf8 {[%emt 0:01:45]} 18. Ng5 {[%emt 0:00:03]} Rc7 {[%emt 0:01:13]} 19. f4 {[%emt 0:00:04]} Bd7 {[%emt 0:01:31]} 20. c4 {[%emt 0:01:20]} Nd4 {[%emt 0:00:17]} 21. Qf2 {[%emt 0:00:24]} dxc4 {[%emt 0:00:41]} 22. Qxd4 {[%emt 0:00:12]} cxd3 {[%emt 0:00:04]} 23. Ne4 {[%emt 0:00:04]} Bc6 {[%emt 0:00:31]} 24. Nf6+ {[%emt 0:00:02]} Kh8 {[%emt 0:00:41]} 25. Qxd3 {[%emt 0:00:02]} Rd8 {[%emt 0:00:15]} 26. Qh3 {[%emt 0:00:01]} Rd2 {[%emt 0:00:47]} 27. Rf2 {[%emt 0:01:05]} Rxf2 {[%emt 0:00:39]} 28. Kxf2 {[%emt 0:00:02]} Qc5+ {[%emt 0:00:01]} 29. Qe3 {[%emt 0:00:06]} Qc2+ {[%emt 0:01:09]} 30. Qe2 {[%emt 0:00:01]} Bxg2 {[%emt 0:00:43]} 31. Rxa7 {[%emt 0:00:22]} Qxe2+ {[%emt 0:00:12]} 32. Kxe2 {[%emt 0:00:02]} Rc8 {[%emt 0:00:25]} 33. Kd3 $15 {[%emt 0:00:13]} Kg7 {[%emt 0:00:16]} 34. Ra2 {[%emt 0:00:41]} Bf3 {[%emt 0:00:08]} 35. Rb2 {[%emt 0:00:12]} h6 {[%emt 0:00:11]} 36. h4 {[%emt 0:00:05]} Kf7 {[%emt 0:00:05]} 37. Rb6 {[%emt 0:00:03]} Bc6 {[%emt 0:00:08]} 38. Kd4 {[%emt 0:00:03]} Rd8+ {[%emt 0:00:01]} 39. Kc5 {[%emt 0:00:01]} Rd2 {[%emt 0:00:05]} 40. Ng4 {[%emt 0:01:15]} h5 {[%emt 0:00:01]} 41. Ne3 {[%emt 0:00:01]} Rf2 {[%emt 0:00:02]} 42. Rb4 {[%emt 0:00:13]} Rh2 {[%emt 0:00:04]} 43. Nc4 {[%emt 0:00:01]} Rxh4 {[%emt 0:00:02]} 44. Nd6+ {[%emt 0:00:01]} Kg7 {[%emt 0:00:01]} 45. Nxb7 {[%emt 0:00:05]} Bxb7 {[%emt 0:00:01]} 46. Rxb7+ {[%emt 0:00:01]} Kh6 {[%emt 0:00:01]} 47. Rf7 {[%emt 0:00:07]} Rg4 {[%emt 0:00:16]} 48. Kd6 {[%emt 0:01:37]} h4 {[%emt 0:00:01]} 49. Ke7 {[%emt 0:00:01]} h3 {[%emt 0:00:26]} 50. Kf8 {[%emt 0:00:01]} Rh4 {[%emt 0:00:03]} 51. Rf6 {[%emt 0:01:18]} h2 {[%emt 0:00:17]} 52. f5 {[%emt 0:00:00]} exf5 {[%emt 0:00:08]} 53. e6 {[%emt 0:00:03]} h1=Q {[%emt 0:00:06]} 54. e7 {[%emt 0:00:04]} Re4 {[%emt 0:00:03]} 0-1

[Event "FRA-ch Universities 2019"]
[Site "Paris"]
[Date "2019.02.03"]
[Round "9"]
[White "Daeschler, Florian"]
[Black "Sochacki, Christophe"]
[Result "1/2-1/2"]
[ECO "A40"]
[WhiteElo "2276"]
[BlackElo "2482"]
[Annotator "ChessBase"]
[PlyCount "73"]
[EventDate "2019.02.01"]
[EventType "swiss"]
[EventCountry "FRA"]
[SourceTitle "playchess.com"]
[Source "ChessBase"]
[SourceQuality "1"]
[TimeControl "900+5"]

1. d4 {[%emt 0:00:00]} Nf6 {[%emt 0:00:00]} 2. c4 {[%emt 0:00:00]} e6 {[%emt 0:00:01]} 3. g3 {[%emt 0:00:00]} d5 {[%emt 0:00:03]} 4. Nf3 {[%emt 0:00:00]} Bb4+ {[%emt 0:00:15]} 5. Bd2 {[%emt 0:00:01]} Be7 {[%emt 0:00:01]} 6. Bg2 {[%emt 0:00:02]} O-O {[%emt 0:00:03]} 7. O-O {[%emt 0:00:02]} b6 {[%emt 0:00:01]} 8. Qc2 {[%emt 0:00:06]} Bb7 {[%emt 0:00:14]} 9. cxd5 {[%emt 0:01:01]} exd5 {[%emt 0:00:08]} 10. Bf4 {[%emt 0:00:07]} c5 {[%emt 0:01:58]} 11. Nc3 {[%emt 0:00:24]} Nc6 {[%emt 0:00:08]} 12. dxc5 {[%emt 0:00:16]} bxc5 {[%emt 0:00:14]} 13. Rfd1 {[%emt 0:00:32]} d4 {[%emt 0:01:35]} 14. a3 {[%emt 0:01:56]} Rc8 {[%emt 0:00:33]} 15. Ne5 {[%emt 0:01:25]} Bd6 {[%emt 0:00:59]} 16. Nxc6 {[%emt 0:01:21]} Bxc6 {[%emt 0:00:01]} 17. Bxc6 {[%emt 0:00:38]} Rxc6 {[%emt 0:00:07]} 18. Bxd6 {[%emt 0:00:09]} Rxd6 {[%emt 0:01:17]} 19. Ne4 {[%emt 0:00:30]} Nxe4 {[%emt 0:00:06]} 20. Qxe4 {[%emt 0:00:01]} Re8 {[%emt 0:00:03]} 21. Qf3 {[%emt 0:00:07]} Qb6 {[%emt 0:00:39]} 22. Rac1 {[%emt 0:00:09]} g6 {[%emt 0:02:40]} 23. Rd2 {[%emt 0:00:16]} Re5 {[%emt 0:00:24]} 24. Rdc2 {[%emt 0:00:40]} Rde6 {[%emt 0:00:34]} 25. Qd3 {[%emt 0:02:11]} Kg7 {[%emt 0:00:14]} 26. b4 {[%emt 0:01:19]} cxb4 {[%emt 0:00:10]} 27. axb4 {[%emt 0:00:06]} Qxb4 {[%emt 0:00:06]} 28. Rc4 {[%emt 0:00:01]} Qb2 {[%emt 0:00:28]} 29. R1c2 {[%emt 0:00:38]} Qb1+ {[%emt 0:00:01]} 30. Kg2 {[%emt 0:00:02]} Qb7+ {[%emt 0:02:30]} 31. Kg1 {[%emt 0:00:05]} Qb1+ {[%emt 0:00:13]} 32. Kg2 {[%emt 0:00:01]} Qb7+ {[%emt 0:00:01]} 33. Kg1 {[%emt 0:00:01]} Qb1+ {[%emt 0:00:48]} 34. Kg2 Rxe2 35. Qxd4+ f6 36. Rc7+ Re7 37. Qd6 1/2-1/2